fUSD/lending_fUSD_20260217
["ID","MTS","AMOUNT","RATE_DAILY","PERIOD"]
[405768990,1771289458050,-151.0,0.00036,2]
[405768991,1771289458061,-162.0,0.00036,31]
[405768992,1771289458070,-150.0,0.00036,2]
[405768993,1771289458080,-162.0,0.00036,60]
[405768994,1771289458090,-1973.26708753,0.00036,2]
[405768995,1771289458100,-160.0,0.00036,120]
[405768996,1771289458110,-172368.59781552,0.00036,2]
[405768997,1771289459942,-500.0,0.00015793,2]
[405768998,1771289459953,-500.0,0.00015848,2]
[405768999,1771289459966,-1349.4,0.00017999,2]
[405769000,1771289459977,-1349.4,0.00017999,2]
[405769001,1771289459989,-1349.4,0.00017999,2]
[405769002,1771289459999,-1349.49343843,0.00017999,2]
[405769003,1771289460009,-497.593868,0.00027397,2]
[405769004,1771289460019,-497.593868,0.00027397,2]
[405769005,1771289460032,-497.593868,0.00027397,2]
[405769006,1771289460043,-497.593868,0.00027397,2]
[405769007,1771289460053,-497.593868,0.000319,7]
[405769008,1771289460063,-497.593868,0.000319,7]
[405769009,1771289460073,-497.593868,0.000319,7]
[405769010,1771289460084,-919.0,0.00032741,2]
[405769011,1771289460094,-914.0,0.00035741,2]
[405769012,1771289460104,-62927.94390661,0.00036,2]
[405769013,1771289460115,-249.0212,0.00036,73]
[405769014,1771289460125,-2000.0,0.00036,73]
[405769015,1771289460135,-2000.0,0.00036,73]
[405769016,1771289460146,-2000.0,0.00036,73]
[405769017,1771289460155,-2000.0,0.00036,73]
[405769018,1771289460165,-350.0,0.00036052,2]
[405769019,1771289460175,-235.93238,0.00036088,30]
[405769020,1771289460185,-1000.0,0.00036164,2]
[405769021,1771289460195,-1535.0,0.00036185,14]
[405769022,1771289460206,-406.0,0.00036247,30]
[405769023,1771289460216,-1500.0,0.00036269,120]
[405769024,1771289460226,-44107.0,0.00036287,30]
[405769025,1771289460238,-1500.0,0.00036288,120]
[405769026,1771289460248,-235.93238,0.00036288,30]
[405769027,1771289460258,-215567.32112482,0.00036325,7]
[405769028,1771289460267,-1500.0,0.00036325,120]
[405769029,1771289460278,-1016.02,0.000364,30]
[405769030,1771289460288,-152.0,0.00036425,10]
[405769031,1771289460297,-150.0,0.0003643,2]
[405769032,1771289460307,-1500.0,0.00036439,120]
[405769033,1771289460317,-1500.0,0.00036459,120]
[405769034,1771289460327,-1000.0,0.00036459,14]
[405769035,1771289460336,-235.93238,0.00036488,30]
[405769036,1771289460348,-1036.7,0.00036524,7]
[405769037,1771289460358,-4169.0,0.0003653,30]
[405769038,1771289460369,-200.0,0.00036562,120]
[405769039,1771289460379,-502.0,0.00036592,19]
[405769040,1771289460390,-2106.93,0.000366,2]
[405769041,1771289460401,-397.9,0.000366,14]
[405769042,1771289460410,-354.28,0.000366,14]
[405769043,1771289460420,-235.93238,0.00036688,30]
[405769044,1771289460431,-229.10815207,0.000367,120]
[405769045,1771289460441,-177.53569362,0.000367,120]
[405769046,1771289460451,-213.31225603,0.000367,120]
[405769047,1771289460461,-162.96676263,0.000367,120]
[405769048,1771289460471,-183.61654118,0.000367,120]
[405769049,1771289460480,-519.95337517,0.000367,120]
[405769050,1771289460491,-194.32951428,0.000367,120]
[405769051,1771289460502,-1000.0,0.00036712,2]
[405769052,1771289460512,-558.7,0.0003672,30]
[405769053,1771289460522,-1000.0,0.00036733,14]
[405769054,1771289460532,-350.0,0.00036816,6]
[405769055,1771289460542,-500.0,0.00036877,120]
[405769056,1771289460552,-786.4412,0.00036888,7]
[405769057,1771289460562,-235.93238,0.00036888,30]
[405769058,1771289460572,-214.0,0.0003689,30]
[405769059,1771289460582,-14169.50568036,0.0003691,2]
[405769060,1771289460591,-1500.0,0.0003691,120]
[405769061,1771289460602,-350.0,0.00037,2]
[405769062,1771289460612,-363.135257,0.00037,4]
[405769063,1771289460622,-350.0,0.00037002,3]
[405769064,1771289460635,-1000.0,0.00037007,14]
[405769065,1771289460644,-235.93238,0.00037088,30]
[405769066,1771289460654,-172.9227876,0.00037096,30]
[405769067,1771289460664,-366.78,0.00037116,60]
[405769068,1771289460675,-1016.02,0.000372,30]
[405769069,1771289460684,-180.23461625,0.000372,120]
[405769070,1771289460694,-180.23461624,0.000372,120]
[405769071,1771289460707,-1036.7,0.00037207,7]
[405769072,1771289460716,-1000.0,0.0003726,2]
[405769073,1771289460726,-502.0,0.00037281,20]
[405769074,1771289460735,-1000.0,0.00037281,14]
[405769075,1771289460745,-235.93238,0.00037288,30]
[405769076,1771289460754,-44107.0,0.00037375,30]
[405769077,1771289460764,-2106.93,0.000374,2]
[405769078,1771289460774,-354.28,0.000374,14]
[405769079,1771289460784,-181.89,0.000374,14]
[405769080,1771289460793,-558.7,0.0003744,30]
[405769081,1771289460803,-235.93238,0.00037488,30]
[405769082,1771289460812,-478.9641001,0.00037499,5]
[405769083,1771289460822,-152.0,0.00037555,11]
[405769084,1771289460831,-1000.0,0.00037555,14]
[405769085,1771289460841,-4345.70251926,0.0003759,2]
[405769086,1771289460854,-350.0,0.00037636,3]
[405769087,1771289460863,-235.93238,0.00037688,30]
[405769088,1771289460873,-360.38217355,0.00037778,30]
[405769089,1771289460883,-229.10815207,0.000378,120]
[405769090,1771289460893,-177.53569362,0.000378,120]
[405769091,1771289460903,-213.31225603,0.000378,120]
[405769092,1771289460915,-162.96676263,0.000378,120]
[405769093,1771289460925,-183.61654118,0.000378,120]
[405769094,1771289461031,-519.95337517,0.000378,120]
[405769095,1771289461041,-194.32951428,0.000378,120]
[405769096,1771289461051,-397.9,0.000378,14]
[405769097,1771289461061,-1000.0,0.00037808,2]
[405769098,1771289461070,-189.77388846,0.00037811,2]
[405769099,1771289461079,-1000.0,0.00037829,14]
[405769100,1771289461089,-235.93238,0.00037888,30]
[405769101,1771289461100,-1036.7,0.00037889,30]
[405769102,1771289461110,-502.0,0.0003797,21]
[405769103,1771289461119,-2000.0,0.00038,120]
[405769104,1771289461129,-1016.02,0.00038,30]
[405769105,1771289461139,-235.93238,0.00038088,30]
[405769106,1771289461148,-181.89,0.000381,14]
[405769107,1771289461158,-1000.0,0.00038103,14]
[405769108,1771289461168,-558.7,0.0003816,30]
[405769109,1771289461176,-2106.93,0.000382,2]
[405769110,1771289461187,-354.28,0.000382,14]
[405769111,1771289461196,-150.0,0.00038252,2]
[405769112,1771289461205,-235.93238,0.00038288,30]
[405769113,1771289461215,-456.64964048,0.00038356,7]
[405769114,1771289461224,-2301.3,0.00038356,120]
[405769115,1771289461234,-500.0,0.00038356,120]
[405769116,1771289461243,-151.0,0.00038356,120]
[405769117,1771289461253,-217.754298,0.00038356,120]
[405769118,1771289461263,-563.81306475,0.00038356,2]
[405769119,1771289461273,-1000.0,0.00038356,2]
[405769120,1771289461282,-1000.0,0.00038377,14]
[405769121,1771289461291,-44107.0,0.00038464,30]
[405769122,1771289461300,-235.93238,0.00038488,30]
[405769123,1771289461310,-655.74401462,0.000385,30]
[405769124,1771289461320,-516.41,0.00038501,90]
[405769125,1771289461331,-1000.0,0.00038502,60]
[405769126,1771289461341,-1000.0,0.00038503,90]
[405769127,1771289461351,-1000.0,0.00038504,90]
[405769128,1771289461360,-1000.0,0.00038505,90]
[405769129,1771289461369,-1000.0,0.00038506,60]
[405769130,1771289461378,-1000.0,0.00038507,90]
[405769131,1771289461387,-1000.0,0.00038508,90]
[405769132,1771289461397,-3739.49289357,0.00038557,120]
[405769133,1771289461406,-1036.7,0.00038571,30]
[405769134,1771289461415,-560.410389,0.000386,36]
[405769135,1771289461425,-151.0,0.0003863,120]
[405769136,1771289461434,-153.940697,0.0003863,120]
[405769137,1771289461444,-425.0,0.0003863,30]
[405769138,1771289461453,-425.0,0.0003863,30]
[405769139,1771289461462,-425.0,0.0003863,30]
[405769140,1771289461472,-425.0,0.0003863,30]
[405769141,1771289461481,-425.0,0.0003863,30]
[405769142,1771289461491,-425.0,0.0003863,30]
[405769143,1771289461500,-425.0,0.0003863,30]
[405769144,1771289461510,-425.0,0.0003863,30]
[405769145,1771289461519,-425.0,0.0003863,30]
[405769146,1771289461529,-425.0,0.0003863,30]
[405769147,1771289461538,-425.0,0.0003863,30]
[405769148,1771289461547,-425.0,0.0003863,30]
[405769149,1771289461557,-425.0,0.0003863,30]
[405769150,1771289461566,-425.0,0.0003863,30]
[405769151,1771289461576,-425.0,0.0003863,30]
[405769152,1771289461585,-425.0,0.0003863,30]
[405769153,1771289461595,-151.000003,0.0003863,120]
[405769154,1771289461604,-151.665321,0.0003863,120]
[405769155,1771289461613,-151.0,0.0003863,120]
[405769156,1771289461623,-151.0,0.0003863,120]
[405769157,1771289461635,-151.812938,0.0003863,120]
[405769158,1771289461644,-151.0,0.0003863,120]
[405769159,1771289461653,-151.0,0.0003863,120]
[405769160,1771289461663,-151.0,0.0003863,120]
[405769161,1771289461672,-151.0,0.0003863,120]
[405769162,1771289461681,-151.0,0.0003863,120]
[405769163,1771289461691,-151.0,0.0003863,120]
[405769164,1771289461700,-151.0,0.0003863,120]
[405769165,1771289461709,-151.0,0.0003863,120]
[405769166,1771289461718,-151.0,0.0003863,120]
[405769167,1771289461727,-151.0,0.0003863,120]
[405769168,1771289461736,-152.212197,0.0003863,120]
[405769169,1771289461745,-151.0,0.0003863,120]
[405769170,1771289461754,-152.013451,0.0003863,120]
[405769171,1771289461763,-151.0,0.0003863,120]
[405769172,1771289461772,-151.0,0.0003863,120]
[405769173,1771289461781,-151.0,0.0003863,120]
[405769174,1771289461790,-151.0,0.0003863,120]
[405769175,1771289461799,-164.071574,0.0003863,120]
[405769176,1771289461808,-201.49,0.0003863,120]
[405769177,1771289461818,-151.0,0.0003863,120]
[405769178,1771289461827,-151.0,0.0003863,120]
[405769179,1771289461836,-151.0,0.0003863,120]
[405769180,1771289461845,-151.0,0.0003863,120]
[405769181,1771289461855,-151.0,0.0003863,120]
[405769182,1771289461864,-238.149701,0.0003863,120]
[405769183,1771289461875,-151.0,0.0003863,120]
[405769184,1771289461884,-151.0,0.0003863,120]
[405769185,1771289461893,-151.0,0.0003863,120]
[405769186,1771289461903,-151.0,0.0003863,120]
[405769187,1771289461913,-151.0,0.0003863,120]
[405769188,1771289461922,-151.0,0.0003863,120]
[405769189,1771289461931,-151.0,0.0003863,120]
[405769190,1771289461941,-151.0,0.0003863,120]
[405769191,1771289461951,-151.0,0.0003863,120]
[405769192,1771289461961,-151.0,0.0003863,120]
[405769193,1771289461971,-183.691668,0.0003863,120]
[405769194,1771289461980,-151.0,0.0003863,120]
[405769195,1771289461989,-151.0,0.0003863,120]
[405769196,1771289461998,-154.013016,0.0003863,120]
[405769197,1771289462008,-174.521526,0.0003863,120]
[405769198,1771289462018,-151.0,0.0003863,120]
[405769199,1771289462028,-174.521526,0.0003863,120]
[405769200,1771289462039,-152.336119,0.0003863,120]
[405769201,1771289462049,-174.521526,0.0003863,120]
[405769202,1771289462059,-174.521526,0.0003863,120]
[405769203,1771289462069,-174.521526,0.0003863,120]
[405769204,1771289462078,-174.521526,0.0003863,120]
[405769205,1771289462087,-174.521526,0.0003863,120]
[405769206,1771289462098,-174.521526,0.0003863,120]
[405769207,1771289462107,-174.521526,0.0003863,120]
[405769208,1771289462117,-174.521526,0.0003863,120]
[405769209,1771289462126,-174.521526,0.0003863,120]
[405769210,1771289462135,-174.521526,0.0003863,120]
[405769211,1771289462144,-151.0,0.0003863,120]
[405769212,1771289462154,-151.0,0.0003863,120]
[405769213,1771289462163,-151.0,0.0003863,120]
[405769214,1771289462172,-151.0,0.0003863,120]
[405769215,1771289462182,-151.0,0.0003863,120]
[405769216,1771289462192,-151.0,0.0003863,120]
[405769217,1771289462202,-151.0,0.0003863,120]
[405769218,1771289462211,-193.134444,0.0003863,120]
[405769219,1771289462220,-151.0,0.0003863,120]
[405769220,1771289462229,-151.0,0.0003863,120]
[405769221,1771289462239,-151.0,0.0003863,120]
[405769222,1771289462248,-151.0,0.0003863,120]
[405769223,1771289462257,-151.0,0.0003863,120]
[405769224,1771289462267,-151.0,0.0003863,120]
[405769225,1771289462276,-151.0,0.0003863,120]
[405769226,1771289462285,-153.597866,0.0003863,120]
[405769227,1771289462295,-151.0,0.0003863,5]
[405769228,1771289462304,-151.0,0.0003863,5]
[405769229,1771289462313,-151.0,0.0003863,5]
[405769230,1771289462322,-151.0,0.0003863,5]
[405769231,1771289462331,-151.0,0.0003863,5]
[405769232,1771289462341,-151.0,0.0003863,5]
[405769233,1771289462352,-174.290764,0.0003863,5]
[405769234,1771289462362,-175.664546,0.0003863,120]
[405769235,1771289462372,-175.664546,0.0003863,120]
[405769236,1771289462381,-175.664546,0.0003863,120]
[405769237,1771289462391,-175.664546,0.0003863,120]
[405769238,1771289462401,-175.664546,0.0003863,120]
[405769239,1771289462411,-175.664546,0.0003863,120]
[405769240,1771289462420,-151.0,0.0003863,120]
[405769241,1771289462430,-151.0,0.0003863,120]
[405769242,1771289462440,-175.664546,0.0003863,120]
[405769243,1771289462450,-153.901077,0.0003863,120]
[405769244,1771289462459,-175.664546,0.0003863,120]
[405769245,1771289462470,-175.664546,0.0003863,120]
[405769246,1771289462479,-175.664546,0.0003863,120]
[405769247,1771289462489,-175.664546,0.0003863,120]
[405769248,1771289462499,-151.0,0.0003863,120]
[405769249,1771289462509,-175.664546,0.0003863,120]
[405769250,1771289462519,-151.0,0.0003863,120]
[405769251,1771289462530,-151.0,0.0003863,120]
[405769252,1771289462540,-151.0,0.0003863,120]
[405769253,1771289462549,-151.0,0.0003863,120]
[405769254,1771289462560,-175.664546,0.0003863,120]
[405769255,1771289462570,-260.333786,0.0003863,120]
[405769256,1771289462580,-175.664546,0.0003863,120]
[405769257,1771289462590,-225.844746,0.0003863,120]
[405769258,1771289462601,-151.0,0.0003863,120]
[405769259,1771289462611,-175.664546,0.0003863,120]
[405769260,1771289462620,-151.0,0.0003863,120]
[405769261,1771289462632,-175.664546,0.0003863,120]
[405769262,1771289462641,-151.0,0.0003863,120]
[405769263,1771289462650,-265.858306,0.0003863,120]
[405769264,1771289462660,-1798.30938,0.0003863,120]
[405769265,1771289462670,-1798.30938,0.0003863,120]
[405769266,1771289462680,-1798.30938,0.0003863,120]
[405769267,1771289462688,-1798.30938,0.0003863,120]
[405769268,1771289462699,-1798.30938,0.0003863,120]
[405769269,1771289462709,-1798.30938,0.0003863,120]
[405769270,1771289462718,-1798.30938,0.0003863,120]
[405769271,1771289462729,-1798.30938,0.0003863,120]
[405769272,1771289462739,-1798.30938,0.0003863,120]
[405769273,1771289462749,-1798.30938,0.0003863,120]
[405769274,1771289462759,-1798.30938,0.0003863,120]
[405769275,1771289462769,-1798.30938,0.0003863,120]
[405769276,1771289462779,-1798.30938,0.0003863,120]
[405769277,1771289462788,-1798.30938,0.0003863,120]
[405769278,1771289462796,-1798.30938,0.0003863,120]
[405769279,1771289462805,-1798.30938,0.0003863,120]
[405769280,1771289462814,-151.0,0.0003863,120]
[405769281,1771289462823,-169.07808,0.0003863,120]
[405769282,1771289462832,-526.030058,0.0003863,120]
[405769283,1771289462841,-526.030058,0.0003863,120]
[405769284,1771289462852,-526.030058,0.0003863,120]
[405769285,1771289462861,-526.030058,0.0003863,120]
[405769286,1771289462870,-526.030058,0.0003863,120]
[405769287,1771289462879,-526.030058,0.0003863,120]
[405769288,1771289462888,-526.030058,0.0003863,120]
[405769289,1771289462898,-526.030058,0.0003863,120]
[405769290,1771289462907,-526.030058,0.0003863,120]
[405769291,1771289462916,-526.030058,0.0003863,120]
[405769292,1771289462925,-526.030058,0.0003863,120]
[405769293,1771289462934,-526.030058,0.0003863,120]
[405769294,1771289462943,-526.030058,0.0003863,120]
[405769295,1771289462952,-526.030058,0.0003863,120]
[405769296,1771289462961,-526.030058,0.0003863,120]
[405769297,1771289462971,-526.030058,0.0003863,120]
[405769298,1771289462980,-153.753196,0.0003863,120]
[405769299,1771289462989,-172.76489,0.0003863,2]
[405769300,1771289462999,-172.76489,0.0003863,2]
[405769301,1771289463008,-172.76489,0.0003863,2]
[405769302,1771289463018,-172.76489,0.0003863,2]
[405769303,1771289463027,-172.76489,0.0003863,2]
[405769304,1771289463036,-172.76489,0.0003863,2]
[405769305,1771289463046,-172.76489,0.0003863,2]
[405769306,1771289463055,-172.76489,0.0003863,2]
[405769307,1771289463065,-151.0,0.0003863,120]
[405769308,1771289463074,-172.76489,0.0003863,2]
[405769309,1771289463083,-155.498808,0.0003863,120]
[405769310,1771289463092,-172.76489,0.0003863,2]
[405769311,1771289463102,-151.0,0.0003863,120]
[405769312,1771289463111,-172.76489,0.0003863,2]
[405769313,1771289463120,-151.0,0.0003863,120]
[405769314,1771289463130,-172.76489,0.0003863,2]
[405769315,1771289463139,-172.76489,0.0003863,2]
[405769316,1771289463148,-172.76489,0.0003863,2]
[405769317,1771289463157,-172.76489,0.0003863,2]
[405769318,1771289463166,-172.76489,0.0003863,2]
[405769319,1771289463175,-256.231706,0.0003863,120]
[405769320,1771289463184,-151.0,0.0003863,120]
[405769321,1771289463195,-151.0,0.0003863,120]
[405769322,1771289463205,-152.388693,0.0003863,120]
[405769323,1771289463215,-229.939336,0.0003863,120]
[405769324,1771289463224,-151.0,0.0003863,120]
[405769325,1771289463233,-151.0,0.0003863,120]
[405769326,1771289463242,-151.0,0.0003863,120]
[405769327,1771289463251,-151.0,0.0003863,120]
[405769328,1771289463260,-231.938342,0.0003863,120]
[405769329,1771289463270,-168.900119,0.0003863,120]
[405769330,1771289463279,-151.977013,0.0003863,120]
[405769331,1771289463288,-151.0,0.0003863,120]
[405769332,1771289463298,-151.0,0.0003863,120]
[405769333,1771289463306,-151.0,0.0003863,120]
[405769334,1771289463316,-151.0,0.0003863,120]
[405769335,1771289463325,-151.0,0.0003863,120]
[405769336,1771289463335,-151.0,0.0003863,120]
[405769337,1771289463345,-151.0,0.0003863,120]
[405769338,1771289463354,-151.0,0.0003863,120]
[405769339,1771289463364,-151.0,0.0003863,120]
[405769340,1771289463373,-162.893265,0.0003863,120]
[405769341,1771289463383,-305.607072,0.0003863,120]
[405769342,1771289463393,-305.607072,0.0003863,120]
[405769343,1771289463402,-151.0,0.0003863,120]
[405769344,1771289463411,-151.0,0.0003863,120]
[405769345,1771289463420,-305.607072,0.0003863,120]
[405769346,1771289463429,-305.607072,0.0003863,120]
[405769347,1771289463439,-151.0,0.0003863,120]
[405769348,1771289463448,-151.0,0.0003863,120]
[405769349,1771289463457,-305.607072,0.0003863,120]
[405769350,1771289463466,-305.607072,0.0003863,120]
[405769351,1771289463476,-305.607072,0.0003863,120]
[405769352,1771289463485,-305.607072,0.0003863,120]
[405769353,1771289463494,-151.0,0.0003863,120]
[405769354,1771289463504,-151.0,0.0003863,120]
[405769355,1771289463513,-203.34134,0.0003863,120]
[405769356,1771289463523,-203.34134,0.0003863,120]
[405769357,1771289463532,-151.0,0.0003863,120]
[405769358,1771289463541,-203.34134,0.0003863,120]
[405769359,1771289463551,-151.0,0.0003863,120]
[405769360,1771289463560,-151.0,0.0003863,120]
[405769361,1771289463569,-203.34134,0.0003863,120]
[405769362,1771289463579,-151.0,0.0003863,120]
[405769363,1771289463588,-203.34134,0.0003863,120]
[405769364,1771289463597,-203.34134,0.0003863,120]
[405769365,1771289463607,-151.0,0.0003863,120]
[405769366,1771289463616,-203.34134,0.0003863,120]
[405769367,1771289463628,-246.209936,0.0003863,120]
[405769368,1771289463637,-203.34134,0.0003863,120]
[405769369,1771289463646,-203.34134,0.0003863,120]
[405769370,1771289463656,-203.34134,0.0003863,120]
[405769371,1771289463665,-203.34134,0.0003863,120]
[405769372,1771289463674,-203.34134,0.0003863,120]
[405769373,1771289463684,-151.0,0.0003863,120]
[405769374,1771289463695,-151.0,0.0003863,120]
[405769375,1771289463706,-151.0,0.0003863,120]
[405769376,1771289463715,-151.0,0.0003863,120]
[405769377,1771289463724,-151.0,0.0003863,120]
[405769378,1771289463733,-151.0,0.0003863,120]
[405769379,1771289463742,-472.692702,0.0003863,120]
[405769380,1771289463750,-151.0,0.0003863,120]
[405769381,1771289463759,-472.692702,0.0003863,120]
[405769382,1771289463769,-472.692702,0.0003863,120]
[405769383,1771289463778,-151.0,0.0003863,120]
[405769384,1771289463787,-151.0,0.0003863,120]
[405769385,1771289463796,-472.692702,0.0003863,120]
[405769386,1771289463806,-254.303076,0.0003863,120]
[405769387,1771289463816,-472.692702,0.0003863,120]
[405769388,1771289463825,-472.692702,0.0003863,120]
[405769389,1771289463836,-151.0,0.0003863,120]
[405769390,1771289463846,-151.0,0.0003863,120]
[405769391,1771289463855,-151.0,0.0003863,120]
[405769392,1771289463865,-472.692702,0.0003863,120]
[405769393,1771289463874,-472.692702,0.0003863,120]
[405769394,1771289463883,-151.0,0.0003863,120]
[405769395,1771289463892,-472.692702,0.0003863,120]
[405769396,1771289463901,-151.0,0.0003863,120]
[405769397,1771289463911,-151.0,0.0003863,120]
[405769398,1771289463922,-472.692702,0.0003863,120]
[405769399,1771289463931,-472.692702,0.0003863,120]
[405769400,1771289463940,-472.692702,0.0003863,120]
[405769401,1771289463950,-151.0,0.0003863,120]
[405769402,1771289463960,-151.0,0.0003863,120]
[405769403,1771289463970,-269.80816,0.0003863,120]
[405769404,1771289463978,-151.0,0.0003863,15]
[405769405,1771289463987,-151.0,0.0003863,15]
[405769406,1771289463996,-151.0,0.0003863,15]
[405769407,1771289464006,-151.0,0.0003863,120]
[405769408,1771289464016,-222.664186,0.0003863,120]
[405769409,1771289464025,-151.0,0.0003863,120]
[405769410,1771289464034,-151.0,0.0003863,120]
[405769411,1771289464043,-151.0,0.0003863,120]
[405769412,1771289464052,-151.0,0.0003863,120]
[405769413,1771289464061,-151.0,0.0003863,120]
[405769414,1771289464070,-151.0,0.0003863,120]
[405769415,1771289464079,-151.0,0.0003863,120]
[405769416,1771289464088,-233.815233,0.0003863,120]
[405769417,1771289464097,-151.0,0.0003863,120]
[405769418,1771289464107,-151.0,0.0003863,120]
[405769419,1771289464117,-151.0,0.0003863,120]
[405769420,1771289464126,-176.78772,0.0003863,120]
[405769421,1771289464135,-221.301549,0.0003863,120]
[405769422,1771289464144,-221.301549,0.0003863,120]
[405769423,1771289464154,-221.301549,0.0003863,120]
[405769424,1771289464165,-221.301549,0.0003863,120]
[405769425,1771289464174,-221.301549,0.0003863,120]
[405769426,1771289464183,-221.301549,0.0003863,120]
[405769427,1771289464192,-151.0,0.0003863,120]
[405769428,1771289464201,-2653.367535,0.0003863,120]
[405769429,1771289464210,-857.723342,0.0003863,120]
[405769430,1771289464219,-151.0,0.0003863,120]
[405769431,1771289464228,-857.723342,0.0003863,120]
[405769432,1771289464237,-2653.367535,0.0003863,120]
[405769433,1771289464246,-153.997031,0.0003863,120]
[405769434,1771289464255,-221.301549,0.0003863,120]
[405769435,1771289464264,-857.723342,0.0003863,120]
[405769436,1771289464273,-2653.367535,0.0003863,120]
[405769437,1771289464282,-221.301549,0.0003863,120]
[405769438,1771289464290,-221.301549,0.0003863,120]
[405769439,1771289464299,-857.723342,0.0003863,120]
[405769440,1771289464308,-2653.367535,0.0003863,120]
[405769441,1771289464317,-857.723342,0.0003863,120]
[405769442,1771289464326,-2653.367535,0.0003863,120]
[405769443,1771289464335,-221.301549,0.0003863,120]
[405769444,1771289464344,-2653.367535,0.0003863,120]
[405769445,1771289464353,-221.301549,0.0003863,120]
[405769446,1771289464363,-857.723342,0.0003863,120]
[405769447,1771289464371,-221.301549,0.0003863,120]
[405769448,1771289464380,-2653.367535,0.0003863,120]
[405769449,1771289464389,-857.723342,0.0003863,120]
[405769450,1771289464398,-2653.367535,0.0003863,120]
[405769451,1771289464407,-857.723342,0.0003863,120]
[405769452,1771289464416,-2653.367535,0.0003863,120]
[405769453,1771289464425,-857.723342,0.0003863,120]
[405769454,1771289464434,-2653.367535,0.0003863,120]
[405769455,1771289464443,-2653.367535,0.0003863,120]
[405769456,1771289464452,-857.723342,0.0003863,120]
[405769457,1771289464461,-2653.367535,0.0003863,120]
[405769458,1771289464471,-857.723342,0.0003863,120]
[405769459,1771289464481,-857.723342,0.0003863,120]
[405769460,1771289464490,-151.0,0.0003863,120]
[405769461,1771289464500,-151.0,0.0003863,120]
[405769462,1771289464511,-151.0,0.0003863,120]
[405769463,1771289464520,-151.0,0.0003863,120]
[405769464,1771289464529,-151.0,0.0003863,120]
[405769465,1771289464538,-151.0,0.0003863,120]
[405769466,1771289464547,-151.0,0.0003863,120]
[405769467,1771289464556,-151.0,0.0003863,120]
[405769468,1771289464565,-217.524874,0.0003863,120]
[405769469,1771289464574,-151.0,0.0003863,120]
[405769470,1771289464583,-151.0,0.0003863,120]
[405769471,1771289464593,-151.0,0.0003863,120]
[405769472,1771289464602,-151.0,0.0003863,120]
[405769473,1771289464611,-151.0,0.0003863,120]
[405769474,1771289464621,-151.0,0.0003863,120]
[405769475,1771289464633,-269.514065,0.0003863,120]
[405769476,1771289464642,-151.0,0.0003863,120]
[405769477,1771289464652,-154.709307,0.0003863,120]
[405769478,1771289464661,-151.01496,0.0003863,120]
[405769479,1771289464671,-151.01496,0.0003863,120]
[405769480,1771289464680,-151.01496,0.0003863,120]
[405769481,1771289464689,-151.01496,0.0003863,120]
[405769482,1771289464699,-151.01496,0.0003863,120]
[405769483,1771289464710,-151.01496,0.0003863,120]
[405769484,1771289464720,-151.01496,0.0003863,120]
[405769485,1771289464729,-151.01496,0.0003863,120]
[405769486,1771289464738,-151.01496,0.0003863,120]
[405769487,1771289464748,-151.01496,0.0003863,120]
[405769488,1771289464758,-151.01496,0.0003863,120]
[405769489,1771289464767,-151.01496,0.0003863,120]